fUST/lending_fUST_20240514
["ID","MTS","AMOUNT","RATE_DAILY","PERIOD"]
[326983974,1715679059892,-500.0,0.00099999,120]
[326983975,1715679059901,-500.0,0.00099999,120]
[326983976,1715679059910,-500.0,0.00099999,120]
[326983977,1715679059919,-500.0,0.00099999,120]
[326983978,1715679059929,-500.0,0.00099999,120]
[326983979,1715679059938,-261.19958422,0.00099999,120]
[326983980,1715679059947,-20000.0,0.00099999,120]
[326983981,1715679059956,-5000.0,0.001,40]
[326983982,1715679059966,-5000.0,0.001,62]
[326983983,1715679059975,-941.53007171,0.001,94]
[326983984,1715679059985,-1116.8101124,0.001,120]
[326983985,1715679059995,-2094.67887212,0.001,120]
[326983986,1715679060004,-1998.25171158,0.001,120]
[326983987,1715679060014,-300.0,0.001,120]
[326983988,1715679060023,-281.0,0.001,40]
[326983989,1715679060033,-281.0,0.001,40]
[326983990,1715679060042,-10000.0,0.001,22]
[326983991,1715679060051,-500000.0,0.001,120]
[326983992,1715679060061,-157.798265,0.00104579,120]
[326983993,1715679060071,-165.351474,0.0010863,120]
[326983994,1715679060080,-171.61414,0.0010863,120]
[326983995,1715679060090,-5649.66,0.00109589,120]
[326983996,1715679060099,-5000.0,0.0011,41]
[326983997,1715679060109,-9696.73989492,0.001111,120]
[326983998,1715679060119,-227.758,0.001125,120]
[326983999,1715679060130,-227.758,0.001125,120]
[326984000,1715679060140,-227.758,0.001125,120]
[326984001,1715679060149,-227.758,0.001125,120]
[326984002,1715679060160,-227.758,0.001125,120]
[326984003,1715679060170,-151.0,0.00115425,120]
[326984004,1715679060181,-165.820151,0.00118082,120]
[326984005,1715679060190,-5000.0,0.0012,42]
[326984006,1715679060199,-157.798265,0.00120783,120]
[326984007,1715679060209,-171.61414,0.00122808,120]
[326984008,1715679060218,-480.0,0.00123815,120]
[326984009,1715679060227,-6500.0,0.00124,120]
[326984010,1715679060236,-1998.25171158,0.00125,120]
[326984011,1715679060246,-306.0,0.00126849,120]
[326984012,1715679060255,-153.0,0.00126849,120]
[326984013,1715679060264,-1000.0,0.00129352,120]
[326984014,1715679060274,-5000.0,0.0013,43]
[326984015,1715679060283,-278.72679046,0.0013,120]
[326984016,1715679060292,-90000.0,0.0013333,120]
[326984017,1715679060302,-5649.66,0.00136986,120]
[326984018,1715679060311,-165.351474,0.00136986,120]
[326984019,1715679060320,-165.562968,0.00136986,120]
[326984020,1715679060329,-165.820151,0.00136986,120]
[326984021,1715679060338,-225.0,0.00136986,120]
[326984022,1715679060348,-171.61414,0.00136986,120]
[326984023,1715679060357,-157.798265,0.00136986,120]
[326984024,1715679060367,-151.0,0.00137233,120]
[326984025,1715679060376,-8936.58081598,0.00138325,120]
[326984026,1715679060385,-5000.0,0.00139,120]
[326984027,1715679060394,-5000.0,0.0014,44]
[326984028,1715679060403,-7500.0,0.00148,120]
[326984029,1715679060412,-1000.0,0.00149999,120]
[326984030,1715679060421,-5000.0,0.0015,45]
[326984031,1715679060430,-198545.1352802,0.0015,120]
[326984032,1715679060439,-1998.53867206,0.0015,120]
[326984033,1715679060449,-556.83187958,0.0015,2]
[326984034,1715679060458,-1000.0,0.00150684,7]
[326984035,1715679060468,-1000.0,0.00150684,7]
[326984036,1715679060477,-1000.0,0.00150684,7]
[326984037,1715679060487,-1000.0,0.00150684,7]
[326984038,1715679060496,-1000.0,0.00150684,7]
[326984039,1715679060506,-1000.0,0.00150684,7]
[326984040,1715679060515,-1000.0,0.00150684,7]
[326984041,1715679060524,-1000.0,0.00150684,7]
[326984042,1715679060534,-1000.0,0.00150684,7]
[326984043,1715679060543,-1000.0,0.00150684,7]
[326984044,1715679060553,-1000.0,0.00150684,7]
[326984045,1715679060562,-1000.0,0.00150684,7]
[326984046,1715679060571,-1000.0,0.00150684,7]
[326984047,1715679060581,-1000.0,0.00150684,7]
[326984048,1715679060591,-1000.0,0.00150684,7]
[326984049,1715679060600,-1000.0,0.00150684,7]
[326984050,1715679060609,-966.35289229,0.00150684,7]
[326984051,1715679060619,-170.752927,0.00156164,2]
[326984052,1715679060627,-4999.99999901,0.001589,120]
[326984053,1715679060637,-151.0,0.00159041,120]
[326984054,1715679060647,-5649.66,0.00164383,120]
[326984055,1715679060656,-1649.97513243,0.0017,68]
[326984056,1715679060666,-3868.0,0.001743,120]
[326984057,1715679060675,-1000.0,0.00179167,120]
[326984058,1715679060684,-151.0,0.00180849,120]
[326984059,1715679060693,-440.0,0.00186475,120]
[326984060,1715679060702,-50000.0,0.0019,30]
[326984061,1715679060714,-5649.66,0.0019178,120]
[326984062,1715679060723,-156.73354296,0.00192,120]
[326984063,1715679060732,-2500.0,0.00198,120]
[326984064,1715679060741,-1000.0,0.002,120]
[326984065,1715679060750,-1000.0,0.002,120]
[326984066,1715679060759,-1998.53867206,0.002,120]
[326984067,1715679060769,-204.81207098,0.002,120]
[326984068,1715679060777,-532.68945253,0.002,120]
[326984069,1715679060786,-151.0,0.00202658,120]
[326984070,1715679060796,-5649.66,0.00219178,120]
[326984071,1715679060806,-156.6247541,0.00219918,120]
[326984072,1715679060815,-151.0,0.00224466,120]
[326984073,1715679060823,-869.295296,0.00225,92]
[326984074,1715679060832,-252.15724318,0.0023,120]
[326984075,1715679060841,-10124.23804383,0.00237,120]
[326984076,1715679060850,-90000.0,0.0023777,120]
[326984077,1715679060859,-6868.0,0.00238,120]
[326984078,1715679060868,-500.0,0.00238,120]
[326984079,1715679060877,-8936.58081598,0.00238325,120]
[326984080,1715679060886,-3868.0,0.002389,120]
[326984081,1715679060895,-239.0,0.0023998,35]
[326984082,1715679060904,-2924.0,0.0023998,35]
[326984083,1715679060913,-239.0,0.0023999,35]
[326984084,1715679060922,-2924.0,0.0023999,35]
[326984085,1715679060931,-1765.6287,0.0024,87]
[326984086,1715679060939,-1000.0,0.0024,120]
[326984087,1715679060949,-1000.0,0.00240016,120]
[326984088,1715679060958,-153.0,0.00240411,120]
[326984089,1715679060967,-153.0,0.00241781,120]
[326984090,1715679060976,-153.0,0.00241781,120]
[326984091,1715679060985,-153.0,0.00241781,120]
[326984092,1715679060994,-153.0,0.00241781,120]
[326984093,1715679061059,-312.2224157,0.00243562,120]
[326984094,1715679061068,-155.6434298,0.00244521,120]
[326984095,1715679061078,-153.0,0.00244521,120]
[326984096,1715679061087,-153.0,0.00244521,120]
[326984097,1715679061096,-153.0,0.00244521,120]
[326984098,1715679061105,-153.0,0.00244521,120]
[326984099,1715679061115,-153.0,0.00244521,120]
[326984100,1715679061124,-151.0,0.00246274,120]
[326984101,1715679061134,-5649.66,0.00246575,120]
[326984102,1715679061143,-160.6911583,0.00247123,120]
[326984103,1715679061153,-3868.0,0.002479,120]
[326984104,1715679061162,-10000.0,0.0024858,120]
[326984105,1715679061172,-309.0,0.0024898,35]
[326984106,1715679061183,-309.0,0.0024899,35]
[326984107,1715679061193,-3886.34104171,0.00249,120]
[326984108,1715679061204,-1000.0,0.0025,120]
[326984109,1715679061214,-400.0,0.0025,120]
[326984110,1715679061225,-2300579.47624341,0.0025,120]
[326984111,1715679061235,-1998.53867206,0.0025,120]
[326984112,1715679061246,-380.0,0.00252493,120]
[326984113,1715679061257,-2500.0,0.00265,120]
[326984114,1715679061271,-3000.0,0.00267,120]
[326984115,1715679061286,-151.0,0.00268082,120]
[326984116,1715679061297,-2935.71787169,0.0027,30]
[326984117,1715679061309,-2935.71787169,0.0027,30]
[326984118,1715679061324,-2935.71787169,0.0027,30]
[326984119,1715679061337,-2935.71787169,0.0027,30]
[326984120,1715679061350,-2935.71787169,0.0027,30]
[326984121,1715679061364,-5649.66,0.00273972,120]
[326984122,1715679061379,-3868.0,0.002743,120]
[326984123,1715679061392,-90000.0,0.0027777,120]
[326984124,1715679061405,-2500.0,0.0028,120]
[326984125,1715679061416,-4000.0,0.0028,120]
[326984126,1715679061428,-156.73354296,0.00289,120]
[326984127,1715679061440,-151.0,0.0028989,120]
[326984128,1715679061453,-300.03113025,0.00299998,30]
[326984129,1715679061465,-500.06337336,0.003,2]
[326984130,1715679061477,-14411.10991831,0.003,120]
[326984131,1715679061489,-400.0,0.003,120]
[326984132,1715679061500,-1000.0,0.003,120]
[326984133,1715679061511,-250.0,0.003,120]
[326984134,1715679061533,-1998.53867206,0.003,120]
[326984135,1715679061544,-1000.0,0.00301353,120]
[326984136,1715679061554,-5649.66,0.00301369,120]
[326984137,1715679061565,-311.6568079,0.0030411,120]
[326984138,1715679061576,-160.4677582,0.00305753,120]
[326984139,1715679061586,-151.0,0.00311699,120]
[326984140,1715679061596,-300.0,0.0032079,120]
[326984141,1715679061607,-5649.66,0.00328767,120]
[326984142,1715679061617,-382.78,0.0033,120]
[326984143,1715679061627,-151.0,0.00333507,120]
[326984144,1715679061638,-11304.32571404,0.00349998,120]
[326984145,1715679061649,-2502.50809365,0.0035,30]
[326984146,1715679061659,-1998.15794393,0.0035,120]
[326984147,1715679061669,-500.06337336,0.0035,2]
[326984148,1715679061679,-405.46641161,0.0035,120]
[326984149,1715679061689,-151.0,0.00355315,120]
[326984150,1715679061700,-5649.66,0.00356164,120]
[326984151,1715679061716,-1000.0,0.00369151,120]
[326984152,1715679061727,-3868.0,0.003743,120]
[326984153,1715679061737,-151.0,0.00377123,120]
[326984154,1715679061749,-4000.0,0.0038,90]
[326984155,1715679061759,-1177.6097,0.00382768,99]
[326984156,1715679061778,-5649.66,0.00383561,120]
[326984157,1715679061788,-156.73354296,0.00385,120]
[326984158,1715679061800,-500.06853125,0.00387,120]
[326984159,1715679061814,-90000.0,0.0038888,120]
[326984160,1715679061825,-317.90984734,0.00390834,120]
[326984161,1715679061836,-2500.0,0.00398,120]
[326984162,1715679061846,-151.0,0.00398932,120]
[326984163,1715679061857,-150.0,0.004,120]
[326984164,1715679061868,-200.0,0.004,120]
[326984165,1715679061879,-200.0,0.004,120]
[326984166,1715679061889,-2000.0,0.004,120]
[326984167,1715679061900,-1998.15794393,0.004,120]
[326984168,1715679061910,-4000.0,0.004,90]
[326984169,1715679061920,-500.06337336,0.004,2]
[326984170,1715679061930,-5649.66,0.00410958,120]
[326984171,1715679061939,-157.7941457,0.00415205,120]
[326984172,1715679061951,-3619.41911368,0.0042,120]
[326984173,1715679061961,-151.0,0.0042074,120]
[326984174,1715679061971,-2500.0,0.00438,120]
[326984175,1715679061981,-5649.66,0.00438356,120]
[326984176,1715679061992,-153.0,0.00438356,120]
[326984177,1715679062001,-153.0,0.00438356,120]
[326984178,1715679062011,-153.0,0.00438356,120]
[326984179,1715679062028,-153.0,0.00438356,120]
[326984180,1715679062037,-153.0,0.00438356,120]
[326984181,1715679062047,-153.0,0.00438356,120]
[326984182,1715679062056,-153.0,0.00438356,120]
[326984183,1715679062065,-153.0,0.00438356,120]
[326984184,1715679062074,-153.0,0.00438356,120]
[326984185,1715679062083,-153.0,0.00438356,120]
[326984186,1715679062092,-153.0,0.00438356,120]
[326984187,1715679062101,-153.0,0.00438356,120]
[326984188,1715679062110,-153.0,0.00438356,120]
[326984189,1715679062119,-153.0,0.00438356,120]
[326984190,1715679062127,-153.0,0.00438356,120]
[326984191,1715679062136,-153.0,0.00438356,120]
[326984192,1715679062145,-153.0,0.00438356,120]
[326984193,1715679062155,-153.0,0.00438356,120]
[326984194,1715679062165,-153.0,0.00438356,120]
[326984195,1715679062174,-153.0,0.00438356,120]
[326984196,1715679062183,-153.0,0.00438356,120]
[326984197,1715679062192,-153.0,0.00438356,120]
[326984198,1715679062201,-3868.0,0.004389,120]
[326984199,1715679062210,-2500.0,0.0044,120]
[326984200,1715679062219,-5000.0,0.0044,120]
[326984201,1715679062229,-151.0,0.00442548,120]
[326984202,1715679062238,-7000.0,0.00442788,116]
[326984203,1715679062248,-1998.15794393,0.0045,120]
[326984204,1715679062257,-1837.21763024,0.0045,120]
[326984205,1715679062272,-3000.0,0.0045,90]
[326984206,1715679062282,-21243.0889442,0.0045,30]
[326984207,1715679062291,-500.06337336,0.0045,2]
[326984208,1715679062300,-1000.0,0.0046173,120]
[326984209,1715679062310,-151.0,0.00464356,120]
[326984210,1715679062319,-5649.66,0.00465753,120]
[326984211,1715679062329,-3868.0,0.004743,120]
[326984212,1715679062339,-150.0254921,0.0047987,120]
[326984213,1715679062349,-8996.62903271,0.0048,120]
[326984214,1715679062358,-166.28128899,0.00481,120]
[326984215,1715679062368,-151.0,0.00486164,120]
[326984216,1715679062377,-10000.0,0.00488,120]
[326984217,1715679062387,-2500.0,0.00489,120]
[326984218,1715679062396,-172.74126659,0.00489,120]
[326984219,1715679062406,-1256.83207007,0.0049,120]
[326984220,1715679062471,-5649.66,0.0049315,120]
[326984221,1715679062482,-3868.0,0.004979,120]
[326984222,1715679062492,-174.222439,0.00499,120]
[326984223,1715679062501,-10000.0,0.004999,120]
[326984224,1715679062510,-195.21046116,0.00499999,120]
[326984225,1715679062523,-1000.0,0.005,120]
[326984226,1715679062532,-265.0,0.005,120]
[326984227,1715679062541,-298.1,0.005,7]
[326984228,1715679062550,-2000.0,0.005,120]
[326984229,1715679062558,-1998.15794393,0.005,120]
[326984230,1715679062568,-150.0,0.005,120]
[326984231,1715679062576,-500.06337336,0.005,2]
[326984232,1715679062586,-300.0,0.005,120]
[326984233,1715679062596,-4046.48427461,0.005,7]
[326984234,1715679062606,-151.0,0.00507973,120]
[326984235,1715679062615,-5649.66,0.00520547,120]
[326984236,1715679062624,-2500.0,0.00529,120]
[326984237,1715679062634,-151.0,0.00529781,120]
[326984238,1715679062643,-3552.82728375,0.0053,120]
[326984239,1715679062652,-178.35966554,0.0053,120]
[326984240,1715679062662,-204.42515315,0.00547841,30]
[326984241,1715679062671,-155.14194298,0.00547841,30]
[326984242,1715679062680,-300.33680613,0.00547841,30]
[326984243,1715679062689,-240.6903832,0.00547841,60]
[326984244,1715679062699,-303.18608432,0.00547841,30]
[326984245,1715679062710,-5649.66,0.00547945,120]
[326984246,1715679062719,-1998.87697492,0.0055,120]
[326984247,1715679062732,-150.0,0.0055,120]
[326984248,1715679062741,-1000.0,0.0055,120]
[326984249,1715679062751,-500.06337336,0.0055,2]
[326984250,1715679062760,-386.35120039,0.00550807,120]
[326984251,1715679062773,-151.0,0.00551589,120]
[326984252,1715679062783,-1000.0,0.00562268,120]
[326984253,1715679062792,-150.0,0.0057,7]
[326984254,1715679062802,-151.0,0.00573397,120]
[326984255,1715679062811,-3868.0,0.005743,120]
[326984256,1715679062821,-5649.66,0.00575342,120]
[326984257,1715679062830,-156.79615499,0.00578,120]
[326984258,1715679062839,-1000.0,0.0058,120]
[326984259,1715679062848,-3000.0,0.0058,90]
[326984260,1715679062858,-252.40524615,0.0058,120]
[326984261,1715679062867,-2500.0,0.00589,120]
[326984262,1715679062876,-30000.0,0.00589987,120]
[326984263,1715679062886,-151.0,0.00595205,120]
[326984264,1715679062895,-156.16741867,0.006,120]
[326984265,1715679062904,-2000.0,0.006,120]
[326984266,1715679062913,-949.18824511,0.006,5]
[326984267,1715679062923,-1998.87697492,0.006,120]
[326984268,1715679062932,-300.0,0.006,120]
[326984269,1715679062941,-5649.66,0.00602739,120]
[326984270,1715679062950,-151.0,0.00617014,120]
[326984271,1715679062960,-155.0,0.0062,120]
[326984272,1715679062969,-5649.66,0.00630136,120]
[326984273,1715679062979,-151.0,0.00638822,120]
[326984274,1715679062989,-3868.0,0.006389,120]
[326984275,1715679062998,-1000.0,0.0064,120]
[326984276,1715679063007,-2500.0,0.00649,120]
[326984277,1715679063020,-1998.87697492,0.0065,120]
[326984278,1715679063030,-5649.66,0.00657534,120]
[326984279,1715679063040,-151.0,0.0066063,120]
[326984280,1715679063049,-2721.71835092,0.0067,120]
[326984281,1715679063058,-162.13811192,0.00674,120]
[326984282,1715679063066,-3868.0,0.006743,120]
[326984283,1715679063075,-1696.79629062,0.0068,120]
[326984284,1715679063084,-1000.0,0.0068,120]
[326984285,1715679063093,-151.0,0.00682438,120]
[326984286,1715679063102,-5649.66,0.00684931,120]
[326984287,1715679063112,-501.48463822,0.00687,120]
[326984288,1715679063121,-1000.0,0.0069995,120]
[326984289,1715679063130,-3216.88958224,0.007,120]
[326984290,1715679063139,-1000.0,0.007,120]
[326984291,1715679063148,-1998.81074662,0.007,120]
[326984292,1715679063158,-1052.37245437,0.007,2]
[326984293,1715679063167,-300.0,0.007,120]
[326984294,1715679063176,-151.0,0.00704247,120]
[326984295,1715679063185,-26951.08293737,0.0071,120]
[326984296,1715679063195,-5649.87960943,0.00712328,120]
[326984297,1715679063204,-540.0,0.0072,60]
[326984298,1715679063213,-151.0,0.00726055,120]
[326984299,1715679063223,-2000.0,0.00737,120]
[326984300,1715679063231,-151.0,0.00747863,120]
[326984301,1715679063240,-3868.0,0.007479,120]
[326984302,1715679063250,-1000.0,0.00749999,120]
[326984303,1715679063258,-1998.81074662,0.0075,120]
[326984304,1715679063272,-2330.25,0.0075,60]
[326984305,1715679063282,-150.0,0.0075,120]
[326984337,1715679286988,747.09975399,0.000267,120]
[326984338,1715679287011,2000.0,0.000267,120]
[326984343,1715679429451,1000.0,0.00012,7]
[326984344,1715679431584,-3060.26446828,0.00019896,2]
[326984345,1715679431608,-2595.37774588,0.00019897,2]
[326984346,1715679431634,-894.13291941,0.00019898,2]
[326984347,1715679431658,-18450.22486643,0.00019899,2]
[326984349,1715679433906,-25000.0,0.00019899,2]
[326984350,1715679435026,-19074.81022372,0.00019899,2]
[326984351,1715679435050,-3356.48793194,0.000199,2]
[326984352,1715679435074,-315.23619623,0.00019998,2]
[326984353,1715679435097,-500.0,0.00019999,2]
[326984354,1715679435121,-500.0,0.00019999,2]
[326984355,1715679435145,-500.0,0.00019999,2]
[326984356,1715679435168,-178.08071614,0.00019999,2]
[326984357,1715679435191,-496.32197982,0.00019999,2]
[326984358,1715679435216,-79.06295215,0.00019999,2]
[326984359,1715679436488,-420.93704785,0.00019999,2]
[326984360,1715679436511,-500.0,0.00019999,2]
[326984361,1715679436535,-597.21610095,0.00019999,2]
[326984362,1715679436560,-500.0,0.00019999,2]
[326984363,1715679436587,-500.0,0.00019999,2]
[326984364,1715679436625,-500.0,0.00019999,2]
[326984365,1715679436652,-500.0,0.00019999,2]
[326984366,1715679436679,-500.0,0.00019999,2]
[326984367,1715679436705,-500.0,0.00019999,2]
[326984368,1715679436731,-500.0,0.00019999,2]
[326984369,1715679436758,-400.0,0.00019999,2]
[326984370,1715679436784,-500.0,0.00019999,2]
[326984371,1715679436810,-500.0,0.00019999,2]
[326984372,1715679436839,-621.34143353,0.00019999,2]
[326984373,1715679436866,-500.0,0.00019999,2]
[326984374,1715679436893,-500.0,0.00019999,2]
[326984375,1715679436920,-500.0,0.00019999,2]
[326984376,1715679436947,-500.0,0.00019999,2]
[326984377,1715679436971,-500.0,0.00019999,2]
[326984378,1715679437086,-500.0,0.00019999,2]
[326984379,1715679437112,-500.0,0.00019999,2]
[326984380,1715679437136,-360.41294893,0.00019999,2]
[326984381,1715679437162,-500.0,0.00019999,2]
[326984382,1715679437186,-500.0,0.00019999,2]
[326984383,1715679437209,-500.0,0.00019999,2]
[326984384,1715679437233,-500.0,0.00019999,2]
[326984385,1715679437258,-500.0,0.00019999,2]
[326984386,1715679437282,-500.0,0.00019999,2]
[326984387,1715679437307,-500.0,0.00019999,2]
[326984388,1715679437332,-500.0,0.00019999,2]
[326984389,1715679437356,-500.0,0.00019999,2]
[326984390,1715679437380,-500.0,0.00019999,2]
[326984391,1715679437414,-500.0,0.00019999,2]
[326984392,1715679437438,-500.0,0.00019999,2]
[326984393,1715679437462,-500.0,0.00019999,2]
[326984394,1715679437488,-500.0,0.00019999,2]
[326984395,1715679437513,-500.0,0.00019999,2]
[326984396,1715679437538,-500.0,0.00019999,2]
[326984397,1715679437564,-500.0,0.00019999,2]
[326984398,1715679437594,-500.0,0.00019999,2]
[326984399,1715679437619,-500.0,0.00019999,2]
[326984400,1715679437643,-500.0,0.00019999,2]
[326984401,1715679437672,-500.0,0.00019999,2]
[326984402,1715679437697,-500.0,0.00019999,2]
[326984403,1715679437723,-500.0,0.00019999,2]
[326984404,1715679437748,-500.0,0.00019999,2]
[326984405,1715679437773,-500.0,0.00019999,2]
[326984406,1715679437798,-500.0,0.00019999,2]
[326984407,1715679437824,-500.0,0.00019999,2]
[326984408,1715679437855,-500.0,0.00019999,2]
[326984409,1715679437880,-100.09246874,0.00019999,2]
[326984410,1715679437916,17866.71156799,0.00024,60]
[326984411,1715679447473,-1074.64348931,0.00019998,2]
[326984412,1715679447497,-244.35547886,0.00019999,2]
[326984413,1715679447522,-500.0,0.00019999,2]
[326984414,1715679447547,-500.0,0.00019999,2]
[326984415,1715679447571,-500.0,0.00019999,2]
[326984416,1715679447597,-200.0,0.00019999,2]
[326984417,1715679447621,-500.0,0.00019999,2]
[326984418,1715679447645,-500.0,0.00019999,2]
[326984419,1715679447670,-500.0,0.00019999,2]
[326984420,1715679447694,-500.0,0.00019999,2]
[326984421,1715679447719,-269.09525508,0.00019999,2]
[326984422,1715679447744,-500.0,0.00019999,2]
[326984423,1715679447768,-552.00347151,0.00019999,2]
[326984424,1715679447792,-500.0,0.00019999,2]
[326984425,1715679447818,-500.0,0.00019999,2]
[326984426,1715679447846,-500.0,0.00019999,2]
[326984427,1715679447871,-500.0,0.00019999,2]
[326984428,1715679447897,-500.0,0.00019999,2]
[326984429,1715679447923,-500.0,0.00019999,2]
[326984430,1715679447948,-500.0,0.00019999,2]
[326984431,1715679447974,-500.0,0.00019999,2]
[326984432,1715679447998,-500.0,0.00019999,2]
[326984433,1715679448023,-500.0,0.00019999,2]
[326984434,1715679448048,-500.0,0.00019999,2]
[326984435,1715679448072,-500.0,0.00019999,2]
[326984436,1715679448097,-500.0,0.00019999,2]
[326984437,1715679448122,-500.0,0.00019999,2]
[326984438,1715679448148,-500.0,0.00019999,2]
[326984439,1715679448173,-11159.90230524,0.0002,2]
[326984440,1715679448901,-25000.0,0.0002,2]
[326984441,1715679461411,-2595.37774588,0.00019997,2]
[326984442,1715679461437,-22404.62225412,0.0002,2]
[326984443,1715679463265,-25000.0,0.0002,2]
[326984444,1715679472386,273.37336231,9.9e-05,2]
[326984445,1715679481055,273.37336231,9.9e-05,2]
[326984446,1715679490409,273.37336231,9.9e-05,2]
[326984447,1715679498461,273.37336231,9.9e-05,2]
[326984451,1715679508312,273.37336231,9.9e-05,2]
[326984452,1715679516878,273.37336231,9.9e-05,2]
[326984453,1715679526005,273.37336231,9.9e-05,2]
[326984455,1715679534062,273.37336231,9.9e-05,2]
[326984460,1715679703330,157.27495146,9.999e-05,2]
[326984461,1715679747590,-175.10393334,0.00019884,2]
[326984462,1715679747614,-157.18037118,0.00019884,2]
[326984463,1715679747638,-2595.37774588,0.00019885,2]
[326984464,1715679747664,-6580.5228918,0.00019886,2]
[326984465,1715679747689,-908.73483057,0.000199,2]
[326984466,1715679747713,-156.26167825,0.00019999,2]
[326984467,1715679747740,-14426.81854898,0.0002,2]
[326984468,1715679749119,-17410.81290181,0.0002,2]
[326984469,1715679749144,-154.79876161,0.0002,2]
[326984470,1715679749168,-200.0,0.0002,2]
[326984471,1715679749192,-7234.38833658,0.0002,2]
[326984472,1715679749972,-25000.0,0.0002,2]
[326984473,1715679750900,-25000.0,0.0002,2]
[326984474,1715679759874,-186.4534129,0.00019999,2]
[326984475,1715679760000,-10747.89420152,0.0002,2]
[326984476,1715679763952,2595.37774588,0.00019999,2]
[326984497,1715679965404,152.1609928,0.0002,2]
[326984508,1715680118691,200.0,0.0002,2]
[326984561,1715680231895,-154.79876161,0.00020812,2]
[326984570,1715680232001,-795.14297674,0.00020813,2]
[326984571,1715680232013,-894.51331095,0.0002091,2]
[326984572,1715680232023,-498.33224292,0.0002091,2]
[326984573,1715680232033,-452.24473105,0.0002091,2]
[326984574,1715680232042,-500.0,0.0002091,2]
[326984575,1715680232051,-155.10807159,0.00020911,2]
[326984578,1715680232060,-884.25983412,0.00020911,2]
[326984580,1715680232072,-1333.23102911,0.00020911,2]
[326984582,1715680232081,-154.79876161,0.00020912,2]
[326984583,1715680232095,-26239.02216637,0.00020912,2]
[326984585,1715680232104,-1894.73559647,0.00020913,2]
[326984588,1715680232114,-225.9724696,0.00021918,2]
[326984589,1715680232123,-224.0275304,0.00021918,2]
[326984591,1715680232133,-166.666666,0.00021918,2]
[326984593,1715680232142,-225.9724696,0.00021918,2]
[326984595,1715680232151,-159.57946618,0.00022,2]
[326984598,1715680232160,-166.666666,0.00022431,2]
[326984600,1715680232171,-166.666666,0.00022944,2]
[326984602,1715680232180,-166.666666,0.00023456,2]
[326984604,1715680232189,-159.587778,0.00023562,2]
[326984606,1715680232198,-166.666666,0.00023969,2]
[326984608,1715680232208,-166.666666,0.00024482,2]
[326984610,1715680232217,-175.05153099,0.000249,2]
[326984612,1715680232226,-500.0,0.00024999,2]
[326984614,1715680232235,-2848.15272714,0.00025,2]
[326984615,1715680232245,-16166.89458835,0.00025,2]
[326984617,1715680232255,-400.46869514,0.00025,2]
[326984619,1715680232265,-167.30505147,0.00025,2]
[326984621,1715680232275,-1058.13973562,0.00025,2]
[326984623,1715680232285,-11917.8584957,0.0002509,2]
[326984625,1715680232294,-831.083453,0.000266,2]
[326984627,1715680232304,-758.819217,0.000267,2]
[326984629,1715680232314,-187.03428599,0.00027,2]
[326984631,1715680232323,-221.44137162,0.00028,2]
[326984633,1715680232333,-324.0,0.0003,2]
[326984635,1715680232343,-448.15988121,0.00032,4]
[326984637,1715680232352,-324.0,0.00033,2]
[326984639,1715680232362,-467.5754666,0.00034,4]